[Event "Titled Tuesday Blitz July 20 2021"]
[White "Seletsky, Grigory"]
[Black "Novikov, Evgenij"]
[WhiteFideId "14112191"]
[BlackFideId "4125380"]
[WhiteElo "2492"]
[BlackElo "2242"]
[Result "1-0"]
[Round "11"]
[TimeControl "180+1"]
[Date "2021.07.21"]
[WhiteClock "0:01:07"]
[BlackClock "0:00:42"]

1. d4 {[%clk 0:02:57]}  d5 {[%clk 0:02:59]} 2. c4 {[%clk 0:02:56]}  e6 {[%clk 0:02:59]} 3. Nc3 {[%clk 0:02:56]}  Nf6 {[%clk 0:02:59]} 4. Bg5 {[%clk 0:02:56]}  Be7 {[%clk 0:02:57]} 5. cxd5 {[%clk 0:02:56]}  Nxd5 {[%clk 0:02:57]} 6. Bxe7 {[%clk 0:02:52]}  Qxe7 {[%clk 0:02:57]} 7. Nxd5 {[%clk 0:02:51]}  exd5 {[%clk 0:02:58]} 8. e3 {[%clk 0:02:49]}  c6 {[%clk 0:02:56]} 9. Bd3 {[%clk 0:02:48]}  Nd7 {[%clk 0:02:52]} 10. Nf3 {[%clk 0:02:42]}  Qb4+ {[%clk 0:02:49]} 11. Qd2 {[%clk 0:02:42]}  Qxd2+ {[%clk 0:02:49]} 12. Kxd2 {[%clk 0:02:41]}  O-O {[%clk 0:02:40]} 13. b4 {[%clk 0:02:40]}  a6 {[%clk 0:02:40]} 14. a4 {[%clk 0:02:39]}  b6 {[%clk 0:02:33]} 15. a5 {[%clk 0:02:30]}  c5 {[%clk 0:02:17]} 16. bxc5 {[%clk 0:02:18]}  bxc5 {[%clk 0:02:17]} 17. Rab1 {[%clk 0:02:13]}  c4 {[%clk 0:02:08]} 18. Bc2 {[%clk 0:02:13]}  Nf6 {[%clk 0:01:58]} 19. Ne5 {[%clk 0:02:11]}  Re8 {[%clk 0:01:35]} 20. Rb6 {[%clk 0:01:59]}  g6 {[%clk 0:01:28]} 21. Rxf6 {[%clk 0:01:57]}  Be6 {[%clk 0:01:26]} 22. Rb1 {[%clk 0:01:54]}  Kg7 {[%clk 0:01:24]} 23. Rf4 {[%clk 0:01:53]}  Rab8 {[%clk 0:01:21]} 24. Rxb8 {[%clk 0:01:42]}  Rxb8 {[%clk 0:01:22]} 25. Nc6 {[%clk 0:01:30]}  Rc8 {[%clk 0:01:07]} 26. Nb4 {[%clk 0:01:27]}  g5 {[%clk 0:00:54]} 27. Rf3 {[%clk 0:01:24]}  h5 {[%clk 0:00:55]} 28. h3 {[%clk 0:01:23]}  c3+ {[%clk 0:00:47]} 29. Kc1 {[%clk 0:01:16]}  g4 {[%clk 0:00:41]} 30. hxg4 {[%clk 0:01:09]}  hxg4 {[%clk 0:00:42]} 31. Rf4 {[%clk 0:01:08]}  Rh8 {[%clk 0:00:42]} 32. Bf5 {[%clk 0:01:07]} 1-0


[Site "https://www.chess.com"]

[Event "Titled Tuesday Blitz July 20 2021"]
[White "Spata, German"]
[Black "Shtyka, Sergey"]
[WhiteFideId "113026"]
[BlackFideId "4138465"]
[WhiteElo "2238"]
[BlackElo "2064"]
[Result "0-1"]
[Round "11"]
[TimeControl "180+1"]
[Date "2021.07.21"]
[WhiteClock "0:00:05"]
[BlackClock "0:00:47"]

1. Nf3 {[%clk 0:03:00]}  c5 {[%clk 0:02:57]} 2. c4 {[%clk 0:03:00]}  Nc6 {[%clk 0:02:57]} 3. Nc3 {[%clk 0:02:56]}  g6 {[%clk 0:02:57]} 4. g3 {[%clk 0:02:56]}  Bg7 {[%clk 0:02:57]} 5. Bg2 {[%clk 0:02:56]}  e5 {[%clk 0:02:57]} 6. O-O {[%clk 0:02:56]}  Nge7 {[%clk 0:02:57]} 7. d3 {[%clk 0:02:54]}  O-O {[%clk 0:02:57]} 8. Rb1 {[%clk 0:02:54]}  d6 {[%clk 0:02:57]} 9. Ne1 {[%clk 0:02:54]}  f5 {[%clk 0:02:55]} 10. Nc2 {[%clk 0:02:54]}  Be6 {[%clk 0:02:49]} 11. Ne3 {[%clk 0:02:53]}  Bf7 {[%clk 0:02:41]} 12. a3 {[%clk 0:02:48]}  a5 {[%clk 0:02:41]} 13. Ned5 {[%clk 0:02:48]}  Nxd5 {[%clk 0:02:40]} 14. Nxd5 {[%clk 0:02:48]}  Ne7 {[%clk 0:02:38]} 15. Bg5 {[%clk 0:02:39]}  Bxd5 {[%clk 0:02:35]} 16. Bxd5+ {[%clk 0:02:38]}  Kh8 {[%clk 0:02:35]} 17. Bxb7 {[%clk 0:02:37]}  Rb8 {[%clk 0:02:35]} 18. Bg2 {[%clk 0:02:34]}  Bf6 {[%clk 0:02:33]} 19. Bxf6+ {[%clk 0:02:29]}  Rxf6 {[%clk 0:02:33]} 20. b4 {[%clk 0:02:19]}  axb4 {[%clk 0:02:33]} 21. axb4 {[%clk 0:02:20]}  cxb4 {[%clk 0:02:32]} 22. Qa4 {[%clk 0:02:19]}  Qb6 {[%clk 0:02:28]} 23. Rb2 {[%clk 0:02:16]}  f4 {[%clk 0:02:18]} 24. gxf4 {[%clk 0:01:46]}  Rxf4 {[%clk 0:02:14]} 25. e3 {[%clk 0:01:43]}  Rg4 {[%clk 0:02:05]} 26. Qd7 {[%clk 0:01:27]}  Nf5 {[%clk 0:01:57]} 27. e4 {[%clk 0:01:16]}  Nh6 {[%clk 0:01:33]} 28. Ra2 {[%clk 0:01:06]}  Rf4 {[%clk 0:01:28]} 29. Qh3 {[%clk 0:00:16]}  Ng4 {[%clk 0:01:23]} 30. Rb2 {[%clk 0:00:16]}  Rbf8 {[%clk 0:01:20]} 31. Qg3 {[%clk 0:00:16]}  Nxf2 {[%clk 0:00:48]} 32. Rfxf2 {[%clk 0:00:11]}  Rxf2 {[%clk 0:00:46]} 33. Rxf2 {[%clk 0:00:04]}  Qxf2+ {[%clk 0:00:46]} 34. Qxf2 {[%clk 0:00:05]}  Rxf2 {[%clk 0:00:46]} 35. Kxf2 {[%clk 0:00:05]}  b3 {[%clk 0:00:47]} 0-1


[Site "https://www.chess.com"]

[Event "Titled Tuesday Blitz July 20 2021"]
[White "Stribuk, Artiom"]
[Black "Nathan, Nitish"]
[WhiteFideId "13515659"]
[BlackFideId "30927870"]
[WhiteElo "2224"]
[BlackElo "2273"]
[Result "1-0"]
[Round "11"]
[TimeControl "180+1"]
[Date "2021.07.21"]
[WhiteClock "0:00:22"]
[BlackClock "0:01:20"]

1. b3 {[%clk 0:03:00]}  Nf6 {[%clk 0:02:56]} 2. Bb2 {[%clk 0:03:01]}  c5 {[%clk 0:02:57]} 3. e3 {[%clk 0:03:01]}  Nc6 {[%clk 0:02:57]} 4. Nf3 {[%clk 0:03:00]}  d5 {[%clk 0:02:57]} 5. Bb5 {[%clk 0:03:00]}  Bd7 {[%clk 0:02:54]} 6. O-O {[%clk 0:02:59]}  e6 {[%clk 0:02:54]} 7. d3 {[%clk 0:02:56]}  Bd6 {[%clk 0:02:54]} 8. Nbd2 {[%clk 0:02:55]}  O-O {[%clk 0:02:54]} 9. e4 {[%clk 0:02:42]}  Be7 {[%clk 0:02:51]} 10. Qe2 {[%clk 0:02:27]}  a6 {[%clk 0:02:50]} 11. Bxc6 {[%clk 0:02:27]}  Bxc6 {[%clk 0:02:51]} 12. Ne5 {[%clk 0:02:22]}  dxe4 {[%clk 0:02:47]} 13. Nxc6 {[%clk 0:02:21]}  bxc6 {[%clk 0:02:46]} 14. Nxe4 {[%clk 0:02:22]}  Nxe4 {[%clk 0:02:45]} 15. Qxe4 {[%clk 0:02:19]}  Qd5 {[%clk 0:02:45]} 16. Rfe1 {[%clk 0:02:18]}  Rab8 {[%clk 0:02:41]} 17. Qg4 {[%clk 0:02:17]}  g6 {[%clk 0:02:39]} 18. Re3 {[%clk 0:01:59]}  Rb4 {[%clk 0:02:36]} 19. Qe2 {[%clk 0:01:56]}  Bd6 {[%clk 0:02:32]} 20. h3 {[%clk 0:01:52]}  Bf4 {[%clk 0:02:28]} 21. Rf3 {[%clk 0:01:42]}  Bc7 {[%clk 0:02:26]} 22. Re1 {[%clk 0:01:41]}  Rd8 {[%clk 0:02:22]} 23. Qe3 {[%clk 0:01:27]}  Qd6 {[%clk 0:02:05]} 24. Qh6 {[%clk 0:01:09]}  Qh2+ {[%clk 0:02:01]} 25. Kf1 {[%clk 0:01:09]}  e5 {[%clk 0:01:49]} 26. Rxf7 {[%clk 0:01:05]}  Kxf7 {[%clk 0:01:45]} 27. Qxh7+ {[%clk 0:01:05]}  Kf6 {[%clk 0:01:43]} 28. Qxc7 {[%clk 0:01:03]}  Re8 {[%clk 0:01:39]} 29. Qxc6+ {[%clk 0:00:44]}  Kf7 {[%clk 0:01:39]} 30. Qd7+ {[%clk 0:00:41]}  Re7 {[%clk 0:01:37]} 31. Qd5+ {[%clk 0:00:41]}  Kf8 {[%clk 0:01:36]} 32. Rxe5 {[%clk 0:00:26]}  Qh1+ {[%clk 0:01:22]} 33. Ke2 {[%clk 0:00:26]}  Rxe5+ {[%clk 0:01:22]} 34. Bxe5 {[%clk 0:00:24]}  Qc1 {[%clk 0:01:21]} 35. Qxc5+ {[%clk 0:00:24]}  Kf7 {[%clk 0:01:19]} 36. Qxb4 {[%clk 0:00:22]}  Qxc2+ {[%clk 0:01:20]} 37. Qd2 {[%clk 0:00:22]} 1-0


[Site "https://www.chess.com"]

[Event "Titled Tuesday Blitz July 20 2021"]
[White "Timmermans, Mark"]
[Black "Golubev, Mikhail"]
[WhiteFideId "1026399"]
[BlackFideId "14100983"]
[WhiteElo "2460"]
[BlackElo "2374"]
[Result "0-1"]
[Round "11"]
[TimeControl "180+1"]
[Date "2021.07.20"]
[WhiteClock "0:00:09"]
[BlackClock "0:00:12"]

1. b4 {[%clk 0:03:00]}  a5 {[%clk 0:02:58]} 2. b5 {[%clk 0:03:00]}  b6 {[%clk 0:02:58]} 3. Bb2 {[%clk 0:03:00]}  Bb7 {[%clk 0:02:58]} 4. a4 {[%clk 0:02:59]}  d6 {[%clk 0:02:58]} 5. c4 {[%clk 0:02:58]}  Nd7 {[%clk 0:02:58]} 6. e3 {[%clk 0:02:58]}  e5 {[%clk 0:02:56]} 7. Nf3 {[%clk 0:02:57]}  Ngf6 {[%clk 0:02:56]} 8. Be2 {[%clk 0:02:57]}  e4 {[%clk 0:02:54]} 9. Nd4 {[%clk 0:02:56]}  Nc5 {[%clk 0:02:51]} 10. O-O {[%clk 0:02:54]}  Qd7 {[%clk 0:02:50]} 11. f3 {[%clk 0:02:50]}  O-O-O {[%clk 0:02:36]} 12. Nc3 {[%clk 0:02:49]}  Nd3 {[%clk 0:02:22]} 13. Ba3 {[%clk 0:02:48]}  Nc5 {[%clk 0:02:06]} 14. fxe4 {[%clk 0:02:48]}  Ncxe4 {[%clk 0:02:02]} 15. Nxe4 {[%clk 0:02:47]}  Bxe4 {[%clk 0:02:01]} 16. d3 {[%clk 0:02:42]}  Bg6 {[%clk 0:01:55]} 17. Bf3 {[%clk 0:02:36]}  Qe8 {[%clk 0:01:41]} 18. Re1 {[%clk 0:02:36]}  h5 {[%clk 0:01:33]} 19. Bc6 {[%clk 0:02:21]}  Qe5 {[%clk 0:01:30]} 20. Qf3 {[%clk 0:02:17]}  d5 {[%clk 0:01:27]} 21. Bxf8 {[%clk 0:02:06]}  Rhxf8 {[%clk 0:01:25]} 22. cxd5 {[%clk 0:02:06]}  Nxd5 {[%clk 0:01:25]} 23. Rac1 {[%clk 0:01:32]}  Bxd3 {[%clk 0:01:19]} 24. Ba8 {[%clk 0:01:08]}  Be4 {[%clk 0:01:01]} 25. Qh3+ {[%clk 0:01:08]}  f5 {[%clk 0:01:01]} 26. Nc6 {[%clk 0:01:05]}  Qb2 {[%clk 0:01:00]} 27. Qg3 {[%clk 0:00:58]}  f4 {[%clk 0:00:36]} 28. exf4 {[%clk 0:00:55]}  Nxf4 {[%clk 0:00:36]} 29. Nxd8 {[%clk 0:00:54]}  Qxc1 {[%clk 0:00:36]} 30. Rxc1 {[%clk 0:00:43]}  Ne2+ {[%clk 0:00:36]} 31. Kh1 {[%clk 0:00:44]}  Nxg3+ {[%clk 0:00:36]} 32. hxg3 {[%clk 0:00:45]}  Bxa8 {[%clk 0:00:36]} 33. Ne6 {[%clk 0:00:45]}  Rf7 {[%clk 0:00:35]} 34. Rd1 {[%clk 0:00:44]}  Rd7 {[%clk 0:00:26]} 35. Rf1 {[%clk 0:00:44]}  Bd5 {[%clk 0:00:24]} 36. Rf8+ {[%clk 0:00:42]}  Kb7 {[%clk 0:00:24]} 37. Nd8+ {[%clk 0:00:42]}  Ka7 {[%clk 0:00:24]} 38. Kh2 {[%clk 0:00:39]}  Re7 {[%clk 0:00:24]} 39. Kh3 {[%clk 0:00:37]}  Re4 {[%clk 0:00:23]} 40. Rf5 {[%clk 0:00:34]}  Rd4 {[%clk 0:00:22]} 41. Rxh5 {[%clk 0:00:32]}  Ba8 {[%clk 0:00:18]} 42. Ne6 {[%clk 0:00:30]}  Rd7 {[%clk 0:00:15]} 43. Rg5 {[%clk 0:00:28]}  Bd5 {[%clk 0:00:14]} 44. Nxg7 {[%clk 0:00:25]}  Bb3 {[%clk 0:00:15]} 45. Rg4 {[%clk 0:00:23]}  Bd1 {[%clk 0:00:14]} 46. Rg5 {[%clk 0:00:16]}  Bxa4 {[%clk 0:00:14]} 47. g4 {[%clk 0:00:17]}  Bc2 {[%clk 0:00:14]} 48. Ne6 {[%clk 0:00:16]}  a4 {[%clk 0:00:13]} 49. Re5 {[%clk 0:00:14]}  a3 {[%clk 0:00:13]} 50. Re3 {[%clk 0:00:14]}  Rd3 {[%clk 0:00:12]} 51. Rxd3 {[%clk 0:00:14]}  Bxd3 {[%clk 0:00:11]} 52. Nd4 {[%clk 0:00:12]}  a2 {[%clk 0:00:11]} 53. Nb3 {[%clk 0:00:13]}  Bxb5 {[%clk 0:00:11]} 54. Kg3 {[%clk 0:00:12]}  Bc4 {[%clk 0:00:11]} 55. Na1 {[%clk 0:00:10]}  b5 {[%clk 0:00:11]} 56. Kf4 {[%clk 0:00:09]}  b4 {[%clk 0:00:11]} 57. Ke3 {[%clk 0:00:09]}  b3 {[%clk 0:00:12]} 0-1


[Site "https://www.chess.com"]

[Event "Titled Tuesday Blitz July 20 2021"]
[White "Tokman, Ariel"]
[Black "Golubenko, Valentina"]
[WhiteFideId "117420"]
[BlackFideId "4501993"]
[WhiteElo "2345"]
[BlackElo "2164"]
[Result "1-0"]
[Round "11"]
[TimeControl "180+1"]
[Date "2021.07.21"]
[WhiteClock "0:01:17"]
[BlackClock "0:00:06"]

1. Nf3 {[%clk 0:03:00]}  g6 {[%clk 0:02:59]} 2. d4 {[%clk 0:03:00]}  Bg7 {[%clk 0:02:59]} 3. Bf4 {[%clk 0:02:58]}  c5 {[%clk 0:02:58]} 4. c3 {[%clk 0:02:57]}  cxd4 {[%clk 0:02:58]} 5. cxd4 {[%clk 0:02:57]}  d5 {[%clk 0:02:58]} 6. Nc3 {[%clk 0:02:56]}  Nc6 {[%clk 0:02:58]} 7. e3 {[%clk 0:02:54]}  Bg4 {[%clk 0:02:53]} 8. Qb3 {[%clk 0:02:52]}  Bxf3 {[%clk 0:02:35]} 9. Qxb7 {[%clk 0:02:41]}  Rc8 {[%clk 0:01:17]} 10. gxf3 {[%clk 0:02:36]}  e6 {[%clk 0:01:03]} 11. Nb5 {[%clk 0:02:04]}  e5 {[%clk 0:00:54]} 12. dxe5 {[%clk 0:01:50]}  Qa5+ {[%clk 0:00:25]} 13. Kd1 {[%clk 0:01:48]}  Nge7 {[%clk 0:00:19]} 14. Nd6+ {[%clk 0:01:41]}  Kf8 {[%clk 0:00:19]} 15. Nxc8 {[%clk 0:01:38]}  Qc5 {[%clk 0:00:08]} 16. Rc1 {[%clk 0:01:31]}  Qb4 {[%clk 0:00:08]} 17. Qxb4 {[%clk 0:01:28]}  Nxb4 {[%clk 0:00:09]} 18. a3 {[%clk 0:01:27]}  Na2 {[%clk 0:00:08]} 19. Rc2 {[%clk 0:01:21]}  h5 {[%clk 0:00:06]} 20. Bd3 {[%clk 0:01:17]}  Nxc8 {[%clk 0:00:06]} 21. Rxc8+ {[%clk 0:01:16]}  Ke7 {[%clk 0:00:06]} 22. Rxh8 {[%clk 0:01:17]}  Bxh8 {[%clk 0:00:06]} 23. Kc2 {[%clk 0:01:18]}  g5 {[%clk 0:00:06]} 24. Bxg5+ {[%clk 0:01:17]} 1-0


[Site "https://www.chess.com"]

[Event "Titled Tuesday Blitz July 20 2021"]
[White "Tomaszewski, Kacper"]
[Black "Jovic, Stanoje"]
[WhiteFideId "1127373"]
[BlackFideId "905020"]
[WhiteElo "2162"]
[BlackElo "2286"]
[Result "1/2-1/2"]
[Round "11"]
[TimeControl "180+1"]
[Date "2021.07.21"]
[WhiteClock "0:00:03"]
[BlackClock "0:00:07"]

1. d4 {[%clk 0:03:00]}  Nf6 {[%clk 0:02:59]} 2. c4 {[%clk 0:03:00]}  e6 {[%clk 0:02:59]} 3. Nc3 {[%clk 0:03:00]}  Bb4 {[%clk 0:02:58]} 4. Bf4 {[%clk 0:03:01]}  O-O {[%clk 0:02:55]} 5. e3 {[%clk 0:03:01]}  b6 {[%clk 0:02:54]} 6. Ne2 {[%clk 0:03:00]}  Bb7 {[%clk 0:02:53]} 7. a3 {[%clk 0:03:01]}  Be7 {[%clk 0:02:50]} 8. d5 {[%clk 0:03:02]}  a5 {[%clk 0:02:42]} 9. e4 {[%clk 0:03:01]}  d6 {[%clk 0:02:40]} 10. Ng3 {[%clk 0:02:55]}  Na6 {[%clk 0:02:39]} 11. Be2 {[%clk 0:02:53]}  Nc5 {[%clk 0:02:39]} 12. b4 {[%clk 0:02:47]}  axb4 {[%clk 0:02:39]} 13. axb4 {[%clk 0:02:48]}  Rxa1 {[%clk 0:02:38]} 14. Qxa1 {[%clk 0:02:49]}  Nb3 {[%clk 0:02:37]} 15. Qd1 {[%clk 0:02:46]}  e5 {[%clk 0:02:25]} 16. Be3 {[%clk 0:02:44]}  Nd4 {[%clk 0:02:23]} 17. Bxd4 {[%clk 0:02:41]}  exd4 {[%clk 0:02:23]} 18. Qxd4 {[%clk 0:02:42]}  Nd7 {[%clk 0:02:20]} 19. Nh5 {[%clk 0:02:35]}  Nf6 {[%clk 0:02:12]} 20. Ng3 {[%clk 0:02:24]}  Nd7 {[%clk 0:02:11]} 21. Nh5 {[%clk 0:02:10]}  Nf6 {[%clk 0:02:10]} 22. O-O {[%clk 0:02:06]}  Nxh5 {[%clk 0:02:08]} 23. Bxh5 {[%clk 0:02:07]}  Bf6 {[%clk 0:02:07]} 24. Qd3 {[%clk 0:02:08]}  Qa8 {[%clk 0:02:03]} 25. Nb5 {[%clk 0:01:59]}  Qa4 {[%clk 0:01:56]} 26. Nxc7 {[%clk 0:01:42]}  Qxb4 {[%clk 0:01:51]} 27. Nb5 {[%clk 0:01:30]}  Ra8 {[%clk 0:01:41]} 28. Qh3 {[%clk 0:01:11]}  Bc8 {[%clk 0:01:31]} 29. Bg4 {[%clk 0:01:08]}  Ba6 {[%clk 0:01:18]} 30. Nc7 {[%clk 0:00:48]}  Bxc4 {[%clk 0:01:15]} 31. Nxa8 {[%clk 0:00:46]}  h5 {[%clk 0:00:33]} 32. Be2 {[%clk 0:00:13]}  Bxe2 {[%clk 0:00:32]} 33. Qc8+ {[%clk 0:00:13]}  Kh7 {[%clk 0:00:29]} 34. Qf5+ {[%clk 0:00:14]}  Kg8 {[%clk 0:00:26]} 35. Qc8+ {[%clk 0:00:14]}  Kh7 {[%clk 0:00:26]} 36. Qf5+ {[%clk 0:00:14]}  Kg8 {[%clk 0:00:25]} 37. Rc1 {[%clk 0:00:13]}  Ba6 {[%clk 0:00:16]} 38. h4 {[%clk 0:00:07]}  Qb2 {[%clk 0:00:08]} 39. Re1 {[%clk 0:00:04]}  Qd2 {[%clk 0:00:07]} 40. Rb1 {[%clk 0:00:04]}  Bd3 {[%clk 0:00:07]} 41. Qc8+ {[%clk 0:00:02]}  Kh7 {[%clk 0:00:06]} 42. Qf5+ {[%clk 0:00:02]}  Kg8 {[%clk 0:00:06]} 43. Qc8+ {[%clk 0:00:02]}  Kh7 {[%clk 0:00:07]} 44. Qf5+ {[%clk 0:00:03]}  Kg8 {[%clk 0:00:07]} 1/2-1/2


[Site "https://www.chess.com"]

[Event "Titled Tuesday Blitz July 20 2021"]
[White "Turgut, Aydin"]
[Black "Pastar, Slaven"]
[WhiteFideId "2078791"]
[BlackFideId "14402718"]
[WhiteElo "2138"]
[BlackElo "2150"]
[Result "1-0"]
[Round "11"]
[TimeControl "180+1"]
[Date "2021.07.21"]
[WhiteClock "0:00:05"]
[BlackClock "0:00:02"]

1. b3 {[%clk 0:03:00]}  b6 {[%clk 0:03:00]} 2. Bb2 {[%clk 0:03:00]}  Bb7 {[%clk 0:03:01]} 3. Nf3 {[%clk 0:02:59]}  Nf6 {[%clk 0:03:02]} 4. g3 {[%clk 0:03:00]}  g6 {[%clk 0:03:01]} 5. Bg2 {[%clk 0:03:00]}  Bg7 {[%clk 0:03:02]} 6. O-O {[%clk 0:03:01]}  O-O {[%clk 0:03:02]} 7. c4 {[%clk 0:03:00]}  c5 {[%clk 0:03:02]} 8. Nc3 {[%clk 0:02:58]}  Nc6 {[%clk 0:03:02]} 9. d4 {[%clk 0:02:52]}  Nxd4 {[%clk 0:03:01]} 10. Nxd4 {[%clk 0:02:53]}  Bxg2 {[%clk 0:03:01]} 11. Kxg2 {[%clk 0:02:48]}  cxd4 {[%clk 0:03:01]} 12. Qxd4 {[%clk 0:02:48]}  Qc7 {[%clk 0:02:56]} 13. Nd5 {[%clk 0:02:40]}  Qb7 {[%clk 0:02:50]} 14. e4 {[%clk 0:02:38]}  Rfe8 {[%clk 0:02:43]} 15. f3 {[%clk 0:02:31]}  Nh5 {[%clk 0:02:26]} 16. Qd2 {[%clk 0:02:28]}  Bxb2 {[%clk 0:02:15]} 17. Qxb2 {[%clk 0:02:29]}  e6 {[%clk 0:02:16]} 18. Ne3 {[%clk 0:02:19]}  e5 {[%clk 0:01:46]} 19. Rad1 {[%clk 0:02:18]}  Nf6 {[%clk 0:01:42]} 20. Rd6 {[%clk 0:02:16]}  Re6 {[%clk 0:01:36]} 21. Rfd1 {[%clk 0:02:12]}  Rc8 {[%clk 0:01:27]} 22. Rxe6 {[%clk 0:02:11]}  dxe6 {[%clk 0:01:22]} 23. Qxe5 {[%clk 0:02:11]}  Qe7 {[%clk 0:01:20]} 24. Qd6 {[%clk 0:02:05]}  Kf8 {[%clk 0:01:17]} 25. e5 {[%clk 0:01:54]}  Ne8 {[%clk 0:01:15]} 26. Qd4 {[%clk 0:01:52]}  Ng7 {[%clk 0:01:10]} 27. Qe4 {[%clk 0:01:42]}  Rd8 {[%clk 0:01:06]} 28. Rd3 {[%clk 0:01:34]}  Nf5 {[%clk 0:01:01]} 29. Ng4 {[%clk 0:01:34]}  Kg7 {[%clk 0:00:49]} 30. Nf6 {[%clk 0:01:15]}  h5 {[%clk 0:00:47]} 31. g4 {[%clk 0:00:52]}  hxg4 {[%clk 0:00:44]} 32. fxg4 {[%clk 0:00:53]}  Nh6 {[%clk 0:00:44]} 33. h4 {[%clk 0:00:28]}  Rxd3 {[%clk 0:00:36]} 34. Qxd3 {[%clk 0:00:29]}  Qa3 {[%clk 0:00:36]} 35. Qd2 {[%clk 0:00:22]}  a5 {[%clk 0:00:19]} 36. Ne8+ {[%clk 0:00:14]}  Kf8 {[%clk 0:00:09]} 37. Nd6 {[%clk 0:00:15]}  Nxg4 {[%clk 0:00:08]} 38. Qe2 {[%clk 0:00:11]}  Nh6 {[%clk 0:00:05]} 39. Qf3 {[%clk 0:00:06]}  Nf5 {[%clk 0:00:06]} 40. Qa8+ {[%clk 0:00:06]}  Kg7 {[%clk 0:00:06]} 41. Ne8+ {[%clk 0:00:06]}  Kh6 {[%clk 0:00:06]} 42. Qf3 {[%clk 0:00:03]}  Qb2+ {[%clk 0:00:06]} 43. Kh3 {[%clk 0:00:03]}  Qd2 {[%clk 0:00:04]} 44. Nf6 {[%clk 0:00:02]}  Qe3 {[%clk 0:00:03]} 45. Ng4+ {[%clk 0:00:03]}  Kg7 {[%clk 0:00:02]} 46. Nxe3 {[%clk 0:00:04]}  Nxe3 {[%clk 0:00:02]} 47. Qxe3 {[%clk 0:00:05]} 1-0


[Site "https://www.chess.com"]

[Event "Titled Tuesday Blitz July 20 2021"]
[White "ValeriyGrinev"]
[Black "Lagunow, Raphael"]
[BlackFideId "24652644"]
[WhiteElo "2621"]
[BlackElo "2400"]
[Result "0-1"]
[Round "11"]
[TimeControl "180+1"]
[Date "2021.07.21"]
[WhiteClock "0:00:23"]
[BlackClock "0:00:11"]

1. e4 {[%clk 0:03:00]}  c5 {[%clk 0:02:56]} 2. Nf3 {[%clk 0:03:00]}  Nc6 {[%clk 0:02:56]} 3. Bb5 {[%clk 0:03:01]}  Na5 {[%clk 0:02:49]} 4. d4 {[%clk 0:02:49]}  a6 {[%clk 0:02:48]} 5. Be2 {[%clk 0:02:48]}  cxd4 {[%clk 0:02:47]} 6. Nxd4 {[%clk 0:02:49]}  e6 {[%clk 0:02:46]} 7. O-O {[%clk 0:02:47]}  b5 {[%clk 0:02:44]} 8. a4 {[%clk 0:02:47]}  b4 {[%clk 0:02:43]} 9. c3 {[%clk 0:02:47]}  Bb7 {[%clk 0:02:43]} 10. Bf3 {[%clk 0:02:37]}  Nf6 {[%clk 0:02:37]} 11. Re1 {[%clk 0:02:37]}  Be7 {[%clk 0:02:20]} 12. e5 {[%clk 0:02:35]}  Nd5 {[%clk 0:02:16]} 13. cxb4 {[%clk 0:02:32]}  Bxb4 {[%clk 0:02:14]} 14. Bd2 {[%clk 0:02:32]}  Qb6 {[%clk 0:02:12]} 15. Bxb4 {[%clk 0:02:27]}  Qxb4 {[%clk 0:02:08]} 16. Nc3 {[%clk 0:02:27]}  Nxc3 {[%clk 0:01:05]} 17. bxc3 {[%clk 0:02:28]}  Qc5 {[%clk 0:01:04]} 18. Bxb7 {[%clk 0:02:25]}  Nxb7 {[%clk 0:01:04]} 19. Qf3 {[%clk 0:02:24]}  Qc7 {[%clk 0:00:54]} 20. Rab1 {[%clk 0:02:22]}  Ra7 {[%clk 0:00:50]} 21. Qe3 {[%clk 0:01:55]}  Ra8 {[%clk 0:00:39]} 22. Rb2 {[%clk 0:01:44]}  O-O {[%clk 0:00:38]} 23. Reb1 {[%clk 0:01:43]}  Nc5 {[%clk 0:00:39]} 24. h3 {[%clk 0:01:38]}  Rab8 {[%clk 0:00:35]} 25. Rxb8 {[%clk 0:01:08]}  Rxb8 {[%clk 0:00:35]} 26. Rxb8+ {[%clk 0:01:07]}  Qxb8 {[%clk 0:00:36]} 27. Nc6 {[%clk 0:01:07]}  Qb6 {[%clk 0:00:19]} 28. Nb4 {[%clk 0:00:52]}  Nxa4 {[%clk 0:00:18]} 29. Qf3 {[%clk 0:00:48]}  h6 {[%clk 0:00:15]} 30. Qa8+ {[%clk 0:00:48]}  Kh7 {[%clk 0:00:15]} 31. Qe4+ {[%clk 0:00:46]}  Kg8 {[%clk 0:00:15]} 32. Qa8+ {[%clk 0:00:45]}  Kh7 {[%clk 0:00:15]} 33. Qe4+ {[%clk 0:00:37]}  g6 {[%clk 0:00:15]} 34. Qf4 {[%clk 0:00:32]}  Kg8 {[%clk 0:00:15]} 35. Qd2 {[%clk 0:00:20]}  a5 {[%clk 0:00:14]} 36. Nc2 {[%clk 0:00:19]}  Qb2 {[%clk 0:00:12]} 37. g4 {[%clk 0:00:10]}  Qxc3 {[%clk 0:00:12]} 38. Qxd7 {[%clk 0:00:11]}  Qxc2 {[%clk 0:00:11]} 39. Qd8+ {[%clk 0:00:11]}  Kh7 {[%clk 0:00:10]} 40. Qe7 {[%clk 0:00:08]}  Qc1+ {[%clk 0:00:10]} 41. Kg2 {[%clk 0:00:08]}  Qf4 {[%clk 0:00:11]} 42. Qa7 {[%clk 0:00:05]}  Nc3 {[%clk 0:00:10]} 43. Qxa5 {[%clk 0:00:05]}  Ne4 {[%clk 0:00:10]} 44. Qa7 {[%clk 0:00:05]}  Kg7 {[%clk 0:00:08]} 45. f3 {[%clk 0:00:06]}  Ng5 {[%clk 0:00:07]} 46. Qf2 {[%clk 0:00:05]}  Qxe5 {[%clk 0:00:06]} 47. h4 {[%clk 0:00:05]}  Nxf3 {[%clk 0:00:05]} 48. Qxf3 {[%clk 0:00:06]}  Qd5 {[%clk 0:00:05]} 49. Qxd5 {[%clk 0:00:05]}  exd5 {[%clk 0:00:06]} 50. Kf3 {[%clk 0:00:06]}  Kf6 {[%clk 0:00:06]} 51. Kf4 {[%clk 0:00:07]}  Ke6 {[%clk 0:00:07]} 52. g5 {[%clk 0:00:06]}  h5 {[%clk 0:00:07]} 53. Kf3 {[%clk 0:00:06]}  Kf5 {[%clk 0:00:07]} 54. Ke3 {[%clk 0:00:07]}  Kg4 {[%clk 0:00:07]} 55. Kd3 {[%clk 0:00:08]}  Kxh4 {[%clk 0:00:07]} 56. Kd4 {[%clk 0:00:09]}  Kxg5 {[%clk 0:00:08]} 57. Kxd5 {[%clk 0:00:10]}  Kg4 {[%clk 0:00:09]} 58. Ke4 {[%clk 0:00:10]}  h4 {[%clk 0:00:09]} 59. Ke3 {[%clk 0:00:11]}  Kg3 {[%clk 0:00:10]} 60. Ke2 {[%clk 0:00:12]}  Kg2 {[%clk 0:00:10]} 61. Ke3 {[%clk 0:00:13]}  h3 {[%clk 0:00:11]} 62. Kf4 {[%clk 0:00:14]}  h2 {[%clk 0:00:12]} 63. Kg5 {[%clk 0:00:15]}  h1=Q {[%clk 0:00:12]} 64. Kf6 {[%clk 0:00:16]}  Qh3 {[%clk 0:00:12]} 65. Kg7 {[%clk 0:00:16]}  g5 {[%clk 0:00:12]} 66. Kf8 {[%clk 0:00:16]}  g4 {[%clk 0:00:12]} 67. Ke7 {[%clk 0:00:17]}  g3 {[%clk 0:00:13]} 68. Kf6 {[%clk 0:00:18]}  Kf2 {[%clk 0:00:13]} 69. Ke5 {[%clk 0:00:19]}  g2 {[%clk 0:00:14]} 70. Kd6 {[%clk 0:00:20]}  g1=Q {[%clk 0:00:14]} 71. Ke7 {[%clk 0:00:21]}  Qg5+ {[%clk 0:00:14]} 72. Kf8 {[%clk 0:00:22]}  f5 {[%clk 0:00:13]} 73. Kf7 {[%clk 0:00:22]}  Qhh5+ {[%clk 0:00:13]} 74. Ke6 {[%clk 0:00:22]}  Qgg6+ {[%clk 0:00:12]} 75. Kd5 {[%clk 0:00:22]}  f4+ {[%clk 0:00:12]} 76. Kd4 {[%clk 0:00:23]}  Qf6+ {[%clk 0:00:12]} 77. Kd3 {[%clk 0:00:22]}  Qd5+ {[%clk 0:00:12]} 78. Kc2 {[%clk 0:00:22]}  Qc4+ {[%clk 0:00:11]} 79. Kd1 {[%clk 0:00:23]}  Qd3+ {[%clk 0:00:11]} 80. Kc1 {[%clk 0:00:23]}  Qa1# {[%clk 0:00:11]} 0-1


[Site "https://www.chess.com"]